fUSD/lending_fUSD_20240215
["ID","MTS","AMOUNT","RATE_DAILY","PERIOD"]
[314092008,1707970252317,-151.021518,0.00039798,20]
[314092009,1707970252327,-1633.49356574,0.000398,5]
[314092010,1707970252337,-592.86,0.00039869,7]
[314092011,1707970252346,-592.86,0.00039869,7]
[314092012,1707970252355,-5000.0,0.00039869,2]
[314092013,1707970252365,-155.861271,0.00039869,7]
[314092014,1707970252375,-570.59963486,0.00039869,2]
[314092015,1707970252665,-429.40036514,0.00039869,2]
[314092016,1707970252676,-984.05,0.00039869,7]
[314092017,1707970252686,-984.05,0.00039869,7]
[314092018,1707970252695,-984.05,0.00039869,7]
[314092019,1707970252707,-984.05,0.00039869,7]
[314092020,1707970252718,-984.05,0.00039869,7]
[314092021,1707970252727,-200.0,0.00039878,20]
[314092022,1707970252739,-592.86,0.00039879,7]
[314092023,1707970252749,-592.86,0.00039879,7]
[314092024,1707970252760,-592.86,0.00039879,7]
[314092025,1707970252769,-592.86,0.00039879,7]
[314092026,1707970252780,-592.86,0.00039879,7]
[314092027,1707970252793,-984.05,0.00039879,7]
[314092028,1707970252803,-984.05,0.00039879,7]
[314092029,1707970252813,-984.05,0.00039879,7]
[314092030,1707970252824,-102088.51180868,0.0003988,2]
[314092031,1707970252839,-2614.7562519,0.0003988,2]
[314092032,1707970252874,-500.0,0.0003863,7]
[314092033,1707970252885,-3664.43450193,0.0003988,2]
[314092034,1707970252940,-836.9735651,0.0003479,2]
[314092035,1707970252961,-719.74912912,0.0003479,2]
[314092036,1707970252970,-2936.6959923,0.00038246,3]
[314092037,1707970252982,-1153.55487858,0.00038246,3]
[314092038,1707970253029,-396.77588872,0.00038246,3]
[314092039,1707970253043,-512.9732404,0.00038246,3]
[314092040,1707970253052,-500.0,0.00038356,7]
[314092041,1707970253062,-99.39655519,0.00038356,7]
[314092042,1707970253076,-400.60344481,0.00038356,7]
[314092043,1707970253086,-527.20551868,0.0003863,7]
[314092044,1707970253095,-764.46356251,0.0003988,2]
[314092045,1707970253148,-0.00757866,0.0003988,2]
[314092046,1707970253161,-259.4268187,0.0003988,2]
[314092047,1707970253176,-15645.73586081,0.0003988,2]
[314092048,1707970253188,-2856.85403804,0.0003988,2]
[314092049,1707970253199,-1825.94322419,0.0003988,2]
[314092050,1707970253211,-6988.83299037,0.0003988,2]
[314092051,1707970253222,-5062.37173803,0.0003988,2]
[314092052,1707970253233,-505.3436697,0.0003988,2]
[314092053,1707970253245,-677.94277342,0.0003988,2]
[314092054,1707970253387,-343.60980816,0.00038356,7]
[314092055,1707970253400,-156.39019184,0.00038356,7]
[314092056,1707970253412,-373.96515225,0.00038356,7]
[314092057,1707970253427,-126.03484775,0.00038356,7]
[314092058,1707970253436,-386.60506685,0.00038356,7]
[314092059,1707970253457,-113.39493315,0.00038356,7]
[314092060,1707970253467,-500.0,0.00038356,7]
[314092061,1707970253475,-468.66860668,0.00038356,7]
[314092062,1707970253487,-31.33139332,0.00038356,7]
[314092063,1707970253497,-500.0,0.0003863,7]
[314092064,1707970253506,-778.19072682,0.0003988,2]
[314092065,1707970253517,-429.38047636,0.0003988,2]
[314092066,1707970253530,-20795.18716279,0.0003988,2]
[314092067,1707970253545,-500.0,0.00038356,7]
[314092068,1707970253555,-2324.50000151,0.0003988,2]
[314092069,1707970253567,-27826.43137868,0.0003988,2]
[314092070,1707970253578,-1040.65669349,0.0003988,2]
[314092071,1707970253590,-2375.55437671,0.0003988,2]
[314092072,1707970253602,-3848.65388206,0.0003988,2]
[314092073,1707970253613,-631.31639916,0.0003988,2]
[314092078,1707971431823,-295.0564,0.0002303,2]
[314092079,1707971431835,-268.59970271,0.00029506,2]
[314092080,1707971431845,-136.4412973,0.00029506,2]
[314092081,1707971431883,-13.5587027,0.00029506,2]
[314092082,1707971431893,-150.0,0.00029506,2]
[314092083,1707971431903,-1684.80570667,0.00029507,2]
[314092084,1707971431916,-6972.55036336,0.00029507,2]
[314092085,1707971431996,-4556.40331479,0.00029507,2]
[314092086,1707971432107,-3575.22331518,0.00029507,2]
[314092087,1707971432119,-499.99,0.00029607,2]
[314092088,1707971432128,-8108.35,0.00029607,2]
[314092089,1707971432138,-268.59970252,0.00030047,2]
[314092090,1707971432148,-268.59970252,0.00030587,2]
[314092091,1707971432157,-1679.65,0.00031122,2]
[314092092,1707971432167,-268.59970252,0.00031128,2]
[314092093,1707971432176,-268.59970252,0.00031669,2]
[314092095,1707971432186,-268.59970252,0.00032209,2]
[314092098,1707971432199,-210.0,0.00032457,2]
[314092100,1707971432209,-210.0,0.00032457,3]
[314092101,1707971432218,-504.25,0.00032499,2]
[314092102,1707971432229,-268.59970252,0.0003275,2]
[314092103,1707971432239,-538.0627,0.000328,2]
[314092104,1707971432249,-5000.0,0.000329,2]
[314092105,1707971432258,-3912.18554123,0.00032987,2]
[314092106,1707971432268,-18851.84423924,0.00032997,10]
[314092107,1707971432278,-3391.57819493,0.00032997,10]
[314092108,1707971432287,-619.1637217,0.00033039,10]
[314092109,1707971432296,-309.58186085,0.00033039,10]
[314092110,1707971432305,-2185.05935149,0.00033061,10]
[314092111,1707971432315,-195.65,0.00033129,120]
[314092112,1707971432324,-268.59970252,0.00033291,2]
[314092113,1707971432333,-970.0,0.00033543,2]
[314092114,1707971432343,-268.59970252,0.00033831,2]
[314092115,1707971432352,-1229.93,0.00033978,2]
[314092116,1707971432361,-200.0,0.00033978,2]
[314092117,1707971432371,-2069.99,0.00033978,2]
[314092118,1707971432380,-250.0,0.00033978,111]
[314092119,1707971432390,-200.0,0.00033978,2]
[314092120,1707971432399,-5000.0,0.000342,2]
[314092121,1707971432409,-152.88,0.00034338,2]
[314092122,1707971432418,-1064.18,0.00034361,2]
[314092123,1707971432428,-268.59970252,0.00034372,2]
[314092124,1707971432437,-1852.42,0.00034391,2]
[314092125,1707971432446,-2000.0,0.00034409,2]
[314092126,1707971432455,-250.0,0.00034417,2]
[314092127,1707971432464,-158.33,0.00034418,2]
[314092128,1707971432473,-500.0,0.00034419,2]
[314092129,1707971432482,-250.0,0.00034422,2]
[314092130,1707971432492,-1962.12,0.0003443,2]
[314092131,1707971432501,-714.63,0.00034436,2]
[314092132,1707971432511,-150.0,0.00034442,2]
[314092133,1707971432520,-150.0,0.00034446,2]
[314092134,1707971432531,-1348.026742,0.000345,2]
[314092135,1707971432540,-3173.086179,0.0003452,2]
[314092136,1707971432549,-14553.113767,0.0003452,2]
[314092137,1707971432559,-262.37,0.00034521,2]
[314092138,1707971432568,-200.0,0.00034588,2]
[314092139,1707971432577,-23900.0,0.000346,2]
[314092140,1707971432587,-359.77,0.00034615,2]
[314092141,1707971432596,-185.77,0.00034632,2]
[314092142,1707971432605,-10814.6,0.00034645,2]
[314092143,1707971432614,-221.28,0.00034673,2]
[314092144,1707971432623,-2961.0,0.000347,3]
[314092145,1707971432633,-18301.0,0.000347,3]
[314092146,1707971432647,-152.88,0.00034729,2]
[314092147,1707971432657,-1569.3,0.00034743,2]
[314092148,1707971432666,-504.25,0.00034763,2]
[314092149,1707971432676,-221.28,0.00034768,2]
[314092150,1707971432685,-4759.629269,0.00034794,2]
[314092151,1707971432694,-21829.67065,0.00034794,2]
[314092152,1707971432704,-2022.040113,0.000348,2]
[314092153,1707971432713,-221.28,0.00034864,2]
[314092154,1707971432722,-179.12,0.00034908,2]
[314092155,1707971432731,-268.59970252,0.00034913,2]
[314092156,1707971432743,-6346.172359,0.00034931,2]
[314092157,1707971432752,-29106.227534,0.00034931,2]
[314092158,1707971432761,-221.28,0.00034959,2]
[314092159,1707971432770,-4096.16,0.00034979,2]
[314092160,1707971432779,-2696.053484,0.00035,2]
[314092161,1707971432790,-221.28,0.00035054,2]
[314092162,1707971432799,-7932.715448,0.00035068,2]
[314092163,1707971432808,-36382.784418,0.00035068,2]
[314092164,1707971432818,-661.80446897,0.00035101,3]
[314092165,1707971432827,-224.18454025,0.00035101,3]
[314092166,1707971432836,-221.28,0.00035149,2]
[314092167,1707971432846,-2217.65544246,0.00035239,2]
[314092168,1707971432855,-221.28,0.00035244,2]
[314092169,1707971433028,-221.28,0.00035339,2]
[314092170,1707971433038,-11105.801628,0.00035342,2]
[314092171,1707971433048,-50935.898185,0.00035342,2]
[314092172,1707971433057,-2705.0,0.00035432,2]
[314092173,1707971433066,-150.0,0.00035432,2]
[314092174,1707971433075,-221.28,0.00035434,2]
[314092175,1707971433085,-268.59970252,0.00035454,2]
[314092176,1707971433095,-221.28,0.00035529,2]
[314092177,1707971433104,-3370.066855,0.000356,2]
[314092178,1707971433113,-221.28,0.00035624,2]
[314092179,1707971433122,-1000.0,0.00035645,2]
[314092180,1707971433132,-293.0,0.00035703,2]
[314092181,1707971433141,-221.28,0.00035719,2]
[314092182,1707971433150,-262.37,0.00035798,2]
[314092183,1707971433159,-221.28,0.00035815,2]
[314092184,1707971433168,-221.28,0.0003591,2]
[314092185,1707971433177,-268.59970252,0.00035994,2]
[314092186,1707971433187,-12692.344718,0.00036,2]
[314092187,1707971433196,-58212.455069,0.00036,2]
[314092188,1707971433205,-4718.093597,0.00036,2]
[314092189,1707971433214,-221.28,0.00036005,2]
[314092190,1707971433223,-714.63,0.0003608,2]
[314092191,1707971433233,-2217.65544244,0.0003609,2]
[314092192,1707971433242,-221.28,0.000361,2]
[314092193,1707971433251,-221.28,0.00036195,2]
[314092194,1707971433260,-221.28,0.0003629,2]
[314092195,1707971433271,-221.28,0.00036385,2]
[314092196,1707971433283,-221.28,0.0003648,2]
[314092197,1707971433293,-2360.07835893,0.000365,5]
[314092198,1707971433302,-155.42,0.000365,3]
[314092199,1707971433312,-155.42,0.000365,3]
[314092200,1707971433321,-155.42,0.000365,3]
[314092201,1707971433330,-155.42,0.000365,3]
[314092202,1707971433340,-155.42,0.000365,3]
[314092203,1707971433350,-155.42,0.000365,3]
[314092204,1707971433359,-268.59970252,0.00036535,2]
[314092205,1707971433369,-410.9299,0.00036841,2]
[314092206,1707971433378,-468.22549071,0.00036927,2]
[314092207,1707971433387,-185.77,0.00036941,2]
[314092208,1707971433397,-2217.65544244,0.00036941,2]
[314092209,1707971433406,-504.25,0.00037027,2]
[314092210,1707971433415,-262.37,0.00037075,2]
[314092211,1707971433425,-268.59970252,0.00037076,2]
[314092212,1707971433434,-157.0,0.0003743,7]
[314092213,1707971433444,-468.22549064,0.00037591,2]
[314092214,1707971433453,-268.59970252,0.00037616,2]
[314092215,1707971433463,-714.63,0.00037724,2]
[314092216,1707971433472,-970.0,0.00037736,2]
[314092217,1707971433482,-2217.65544244,0.00037793,2]
[314092218,1707971433491,-155.42,0.000378,3]
[314092219,1707971433500,-155.42,0.000378,3]
[314092220,1707971433510,-155.42,0.000378,3]
[314092221,1707971433519,-155.42,0.000378,3]
[314092222,1707971433531,-155.42,0.000378,3]
[314092223,1707971433540,-155.42,0.000378,3]
[314092224,1707971433549,-165.15,0.00038038,2]
[314092225,1707971433558,-203.0,0.00038133,2]
[314092226,1707971433568,-268.59970252,0.00038157,2]
[314092227,1707971433577,-468.22549064,0.00038254,2]
[314092228,1707971433596,-2213.8679,0.00038256,2]
[314092229,1707971433607,-204.66037947,0.00038256,8]
[314092230,1707971433617,-208.0,0.0003827,2]
[314092231,1707971433626,-262.37,0.00038352,2]
[314092232,1707971433636,-507.15126356,0.00038356,7]
[314092233,1707971433645,-502.14347219,0.00038356,7]
[314092234,1707971433655,-510.15589135,0.00038356,15]
[314092235,1707971433664,-506.35855649,0.00038356,7]
[314092236,1707971433674,-503.72425896,0.00038356,7]
[314092237,1707971433683,-500.0,0.00038356,7]
[314092238,1707971433693,-522.8094199,0.00038356,7]
[314092239,1707971433703,-527.41184123,0.00038356,7]
[314092240,1707971433713,-530.26037459,0.00038356,7]
[314092241,1707971433722,-552.25672863,0.00038356,7]
[314092242,1707971433732,-527.85529409,0.00038356,7]
[314092243,1707971433743,-503.144189,0.00038356,7]
[314092244,1707971433752,-560.99168132,0.00038356,7]
[314092245,1707971433766,-500.0,0.00038356,7]
[314092246,1707971433775,-500.0,0.00038356,7]
[314092247,1707971433786,-519.90125621,0.00038356,7]
[314092248,1707971433796,-500.70934394,0.00038356,7]
[314092249,1707971433806,-507.0978988,0.00038356,7]
[314092250,1707971433816,-503.24589156,0.00038356,7]
[314092251,1707971433825,-500.0,0.00038356,7]
[314092252,1707971433836,-517.02098907,0.00038356,7]
[314092253,1707971433846,-510.97541353,0.00038356,2]
[314092254,1707971433858,-526.09034887,0.00038356,7]
[314092255,1707971433867,-504.32479816,0.00038356,7]
[314092256,1707971433877,-500.0,0.00038356,7]
[314092257,1707971433886,-510.62743783,0.00038356,7]
[314092258,1707971433895,-525.38132364,0.00038356,7]
[314092259,1707971433905,-505.88300086,0.00038356,7]
[314092260,1707971433916,-507.57634302,0.00038356,7]
[314092261,1707971433926,-515.99622908,0.00038356,7]
[314092262,1707971433936,-504.02924313,0.00038356,7]
[314092263,1707971433945,-500.0,0.00038356,7]
[314092264,1707971433955,-500.0,0.00038356,7]
[314092265,1707971433964,-500.0,0.00038356,7]
[314092266,1707971433974,-513.51652598,0.00038356,7]
[314092267,1707971433983,-500.0,0.00038356,7]
[314092268,1707971433992,-500.0,0.00038356,7]
[314092269,1707971434001,-500.0,0.00038356,7]
[314092270,1707971434011,-500.0,0.00038356,7]
[314092271,1707971434020,-211.69476172,0.00038356,7]
[314092272,1707971434030,-509.59231474,0.00038356,7]
[314092273,1707971434039,-517.58200189,0.00038356,7]
[314092274,1707971434049,-500.0,0.00038356,7]
[314092275,1707971434058,-500.0,0.00038356,7]
[314092276,1707971434067,-500.0,0.00038356,7]
[314092277,1707971434076,-500.0,0.00038356,7]
[314092278,1707971434086,-500.0,0.00038356,7]
[314092279,1707971434095,-500.0,0.00038356,7]
[314092280,1707971434104,-517.77898638,0.00038356,7]
[314092281,1707971434113,-511.45818085,0.00038356,7]
[314092282,1707971434125,-388.68033329,0.00038356,7]
[314092283,1707971434134,-257.59444194,0.00038356,7]
[314092284,1707971434144,-501.70064652,0.00038356,7]
[314092285,1707971434154,-500.0,0.00038356,7]
[314092286,1707971434163,-523.0328962,0.00038356,7]
[314092287,1707971434172,-501.88224419,0.00038356,7]
[314092288,1707971434181,-500.27860851,0.00038356,7]
[314092289,1707971434191,-517.13296712,0.00038356,7]
[314092290,1707971434200,-521.4223298,0.00038356,7]
[314092291,1707971434209,-501.87084758,0.00038356,7]
[314092292,1707971434219,-518.47606808,0.00038356,7]
[314092293,1707971434229,-500.0,0.00038356,7]
[314092294,1707971434238,-500.0,0.00038356,7]
[314092295,1707971434247,-542.07550084,0.00038356,7]
[314092296,1707971434257,-328.97979401,0.00038356,7]
[314092297,1707971434266,-500.0,0.00038356,7]
[314092298,1707971434275,-500.0,0.00038356,7]
[314092299,1707971434284,-522.06728,0.00038356,7]
[314092300,1707971434294,-500.0,0.00038356,7]
[314092301,1707971434304,-500.0,0.00038356,7]
[314092302,1707971434314,-500.0,0.00038356,7]
[314092303,1707971434323,-500.0,0.00038356,7]
[314092304,1707971434332,-500.0,0.00038356,7]
[314092305,1707971434343,-562.74855923,0.00038356,7]
[314092306,1707971434353,-500.0,0.00038356,7]
[314092307,1707971434362,-564.41091151,0.00038356,7]
[314092308,1707971434372,-500.0,0.00038356,7]
[314092309,1707971434381,-500.0,0.00038356,7]
[314092310,1707971434391,-500.0,0.00038356,7]
[314092311,1707971434400,-500.0,0.00038356,7]
[314092312,1707971434411,-500.0,0.00038356,7]
[314092313,1707971434420,-500.0,0.00038356,7]
[314092314,1707971434429,-500.0,0.00038356,7]
[314092315,1707971434441,-500.0,0.00038356,7]
[314092316,1707971434451,-500.0,0.00038356,7]
[314092317,1707971434460,-500.0,0.00038356,7]
[314092318,1707971434470,-500.0,0.00038356,7]
[314092319,1707971434480,-500.0,0.00038356,7]
[314092320,1707971434489,-500.0,0.00038356,7]
[314092321,1707971434499,-500.0,0.00038356,7]
[314092322,1707971434509,-500.0,0.00038356,7]
[314092323,1707971434519,-500.0,0.00038356,7]
[314092324,1707971434528,-500.0,0.00038356,7]
[314092325,1707971434538,-321.95936677,0.00038356,7]
[314092326,1707971434556,-178.04063323,0.00038356,7]
[314092327,1707971434565,-500.0,0.00038356,7]
[314092328,1707971434575,-500.0,0.00038356,7]
[314092329,1707971434584,-500.0,0.00038356,7]
[314092330,1707971434594,-65.27196737,0.00038356,7]
[314092331,1707971434610,-449.37803263,0.00038356,7]
[314092332,1707971434619,-490.39612127,0.00038356,7]
[314092333,1707971434632,-9.60387873,0.00038356,7]
[314092334,1707971434641,-819.59,0.00038356,7]
[314092335,1707971434651,-500.0,0.00038356,7]
[314092336,1707971434661,-500.0,0.00038356,7]
[314092337,1707971434670,-500.0,0.00038356,7]
[314092338,1707971434680,-500.0,0.00038356,7]
[314092339,1707971434689,-500.0,0.00038356,7]
[314092340,1707971434699,-500.0,0.00038356,7]
[314092341,1707971434708,-500.0,0.00038356,7]
[314092342,1707971434719,-500.0,0.00038356,7]
[314092343,1707971434728,-527.81925997,0.00038356,7]
[314092344,1707971434740,-500.0,0.00038356,7]
[314092345,1707971434750,-546.66283276,0.00038356,7]
[314092346,1707971434760,-500.0,0.00038356,7]
[314092347,1707971434769,-500.0,0.00038356,7]
[314092348,1707971434779,-503.44141687,0.00038356,7]
[314092349,1707971434789,-500.0,0.00038356,7]
[314092350,1707971434798,-500.0,0.00038356,7]
[314092351,1707971434807,-500.0,0.00038356,7]
[314092352,1707971434816,-500.0,0.00038356,7]
[314092353,1707971434825,-500.0,0.00038356,7]
[314092354,1707971434835,-500.0,0.00038356,7]
[314092355,1707971434844,-182.04612785,0.00038356,7]
[314092356,1707971434853,-500.0,0.00038356,7]
[314092357,1707971434862,-500.0,0.00038356,7]
[314092358,1707971434871,-500.0,0.00038356,7]
[314092359,1707971434880,-500.0,0.00038356,7]
[314092360,1707971434889,-638.87023283,0.00038356,7]
[314092361,1707971434898,-500.0,0.00038356,7]
[314092362,1707971434907,-500.0,0.00038356,7]
[314092363,1707971434918,-500.0,0.00038356,7]
[314092364,1707971434930,-500.0,0.00038356,7]
[314092365,1707971434939,-500.0,0.00038356,7]
[314092366,1707971434949,-500.0,0.00038356,7]
[314092367,1707971434959,-500.0,0.00038356,7]
[314092368,1707971434970,-500.0,0.00038356,7]
[314092369,1707971434979,-258.94001141,0.00038356,7]
[314092370,1707971434989,-500.0,0.00038356,7]
[314092371,1707971434999,-500.0,0.00038356,7]
[314092372,1707971435008,-500.0,0.00038356,7]
[314092373,1707971435017,-500.0,0.00038356,7]
[314092374,1707971435027,-500.0,0.00038356,7]
[314092375,1707971435037,-500.0,0.00038356,7]
[314092376,1707971435046,-500.0,0.00038356,7]
[314092377,1707971435056,-500.0,0.00038356,7]
[314092378,1707971435065,-500.0,0.00038356,7]
[314092379,1707971435075,-500.0,0.00038356,7]
[314092380,1707971435084,-500.0,0.00038356,7]
[314092381,1707971435094,-500.0,0.00038356,7]
[314092382,1707971435103,-500.0,0.00038356,7]
[314092383,1707971435113,-500.0,0.00038356,7]
[314092384,1707971435123,-500.0,0.00038356,7]
[314092385,1707971435132,-500.0,0.00038356,7]
[314092386,1707971435142,-500.0,0.00038356,7]
[314092387,1707971435151,-500.0,0.00038356,7]
[314092388,1707971435160,-500.0,0.00038356,7]
[314092389,1707971435170,-500.0,0.00038356,7]
[314092390,1707971435180,-500.0,0.00038356,7]
[314092391,1707971435189,-500.0,0.00038356,7]
[314092392,1707971435199,-500.0,0.00038356,7]
[314092393,1707971435208,-500.0,0.00038356,7]
[314092394,1707971435217,-421.39134634,0.00038356,7]
[314092395,1707971435227,-500.0,0.00038356,7]
[314092396,1707971435238,-500.0,0.00038356,7]
[314092397,1707971435247,-500.0,0.00038356,7]
[314092398,1707971435258,-1123.07,0.00038356,7]
[314092399,1707971435268,-500.0,0.00038356,7]
[314092400,1707971435280,-467.34558269,0.00038356,7]
[314092401,1707971435290,-500.0,0.00038356,7]
[314092402,1707971435300,-500.0,0.00038356,7]
[314092403,1707971435310,-500.0,0.00038356,7]
[314092404,1707971435321,-500.0,0.00038356,7]
[314092405,1707971435331,-500.0,0.00038356,7]
[314092406,1707971435341,-577.64509081,0.00038356,7]
[314092407,1707971435351,-500.0,0.00038356,7]
[314092408,1707971435361,-500.0,0.00038356,7]
[314092409,1707971435371,-500.0,0.00038356,7]
[314092410,1707971435380,-500.0,0.00038356,7]
[314092411,1707971435390,-500.0,0.00038356,7]
[314092412,1707971435399,-331.04903606,0.00038356,7]
[314092413,1707971435409,-580.84190245,0.00038356,7]
[314092414,1707971435418,-500.0,0.00038356,7]
[314092415,1707971435428,-500.0,0.00038356,7]
[314092416,1707971435437,-500.0,0.00038356,7]
[314092417,1707971435447,-516.2007566,0.00038356,7]
[314092418,1707971435456,-304.26025245,0.00038356,7]
[314092419,1707971435465,-500.0,0.00038356,7]
[314092420,1707971435475,-500.88244932,0.00038356,2]
[314092421,1707971435485,-500.0,0.00038356,7]
[314092422,1707971435494,-401.21477854,0.00038356,7]
[314092423,1707971435504,-288.08170279,0.00038356,2]
[314092424,1707971435514,-500.0,0.00038356,7]
[314092425,1707971435524,-150.29,0.00038356,2]
[314092426,1707971435534,-305.94357691,0.00038427,10]
[314092427,1707971435544,-5000.0,0.00038429,3]
[314092428,1707971435554,-709.07139732,0.0003843,2]
[314092429,1707971435564,-2486.50109475,0.0003851,10]
[314092430,1707971435574,-299.41085414,0.0003851,2]
[314092431,1707971435583,-1491.90065685,0.00038518,10]
[314092432,1707971435593,-2486.50109475,0.0003852,10]
[314092433,1707971435602,-82856.1441768,0.0003852,2]
[314092434,1707971435612,-963.62675635,0.00038525,2]
[314092435,1707971435622,-627.6794541,0.00038528,7]
[314092436,1707971435631,-500.0,0.00038528,7]
[314092437,1707971435640,-629.76027084,0.00038528,7]
[314092438,1707971435650,-500.0,0.00038528,7]
[314092439,1707971435659,-502.79489974,0.00038528,7]
[314092440,1707971435668,-500.0,0.00038528,7]
[314092441,1707971435680,-500.0,0.00038528,7]
[314092442,1707971435689,-500.0,0.00038528,7]
[314092443,1707971435698,-500.0,0.00038528,7]
[314092444,1707971435708,-500.0,0.00038528,7]
[314092445,1707971435717,-503.39908127,0.00038528,7]
[314092446,1707971435727,-500.0,0.00038528,7]
[314092447,1707971435746,-500.0,0.00038528,7]
[314092448,1707971435756,-500.0,0.00038528,2]
[314092449,1707971435767,-500.0,0.00038528,7]
[314092450,1707971435777,-500.0,0.00038528,7]
[314092451,1707971435787,-500.0,0.00038528,7]
[314092452,1707971435797,-500.0,0.00038528,7]
[314092453,1707971435806,-500.0,0.00038528,7]
[314092454,1707971435816,-500.0,0.00038528,7]
[314092455,1707971435826,-500.0,0.00038528,7]
[314092456,1707971435835,-500.0,0.00038528,7]
[314092457,1707971435845,-500.0,0.00038528,7]
[314092458,1707971435855,-500.0,0.00038528,2]
[314092459,1707971435864,-500.0,0.00038528,7]
[314092460,1707971435874,-500.0,0.00038528,7]
[314092461,1707971435883,-510.58611354,0.00038528,7]
[314092462,1707971435893,-500.0,0.00038528,7]
[314092463,1707971435903,-244.14606172,0.00038528,7]
[314092464,1707971435912,-500.0,0.00038528,7]
[314092465,1707971435921,-500.0,0.00038528,7]
[314092466,1707971435931,-500.0,0.00038528,7]
[314092467,1707971435940,-500.0,0.00038528,7]
[314092468,1707971435950,-502.87056085,0.00038528,7]
[314092469,1707971435959,-500.0,0.00038528,7]
[314092470,1707971435968,-500.0,0.00038528,7]
[314092471,1707971435977,-500.0,0.00038528,7]
[314092472,1707971435987,-500.0,0.00038528,7]
[314092473,1707971435996,-500.0,0.00038528,7]
[314092474,1707971436006,-500.0,0.00038528,7]
[314092475,1707971436170,-500.0,0.00038528,7]
[314092476,1707971436179,-500.0,0.00038528,7]
[314092477,1707971436189,-500.0,0.00038528,7]
[314092478,1707971436198,-500.0,0.00038528,7]
[314092479,1707971436207,-421.66680631,0.00038528,7]
[314092480,1707971436216,-315.27613626,0.00038528,7]
[314092481,1707971436229,-338.96,0.00038528,7]
[314092482,1707971436238,-240.50895135,0.00038528,7]
[314092483,1707971436247,-500.0,0.00038528,7]
[314092484,1707971436257,-302.92920905,0.00038528,7]
[314092485,1707971436267,-500.0,0.00038528,7]
[314092486,1707971436277,-500.0,0.00038528,7]
[314092487,1707971436287,-171.20431991,0.00038528,7]
[314092488,1707971436296,-366.49541921,0.00038528,7]
[314092489,1707971436306,-500.0,0.00038528,7]
[314092490,1707971436316,-500.0,0.00038528,7]
[314092491,1707971436325,-500.0,0.00038528,7]
[314092492,1707971436335,-500.0,0.00038528,7]
[314092493,1707971436344,-500.0,0.00038528,7]
[314092494,1707971436354,-500.0,0.00038528,7]
[314092495,1707971436364,-500.0,0.00038528,7]
[314092496,1707971436374,-261.45857083,0.00038528,7]
[314092497,1707971436383,-677.94,0.00038528,7]
[314092498,1707971436393,-500.0,0.00038528,7]
[314092499,1707971436402,-612.59381979,0.00038528,7]
[314092500,1707971436412,-500.0,0.00038528,7]
[314092501,1707971436421,-500.0,0.00038528,7]
[314092502,1707971436430,-500.0,0.00038528,7]
[314092503,1707971436440,-500.0,0.00038528,7]
[314092504,1707971436450,-500.0,0.00038528,7]
[314092505,1707971436460,-500.0,0.00038528,7]
[314092506,1707971436470,-500.0,0.00038528,7]
[314092507,1707971436479,-500.0,0.00038528,7]
[314092508,1707971436490,-500.0,0.00038528,7]
[314092509,1707971436500,-500.0,0.00038528,7]
[314092510,1707971436511,-500.0,0.00038528,7]
[314092511,1707971436521,-500.0,0.00038528,7]
[314092512,1707971436533,-500.0,0.00038528,7]
[314092513,1707971436543,-500.0,0.00038528,7]
[314092514,1707971436553,-500.0,0.00038528,7]
[314092515,1707971436562,-500.0,0.00038528,7]